bitfinex/quotes_SOLUSD_20220218
["timestamp","ask_amount","ask_price","bid_price","bid_amount"]
[1645198638625,2.6293831,90.971,90.811,40.25448115]
[1645198638825,11.501,90.97,90.811,40.25448115]
[1645198639466,5.501,90.97,90.812,2.6293831]
[1645198639631,5.501,90.97,90.813,6.0]
[1645198639828,5.501,90.978,90.813,6.0]
[1645198640029,2.6293831,90.97,90.814,2.6293831]
[1645198640229,5.501,90.969,90.815,6.25]
[1645198640702,2.6293831,90.968,90.815,6.25]
[1645198640918,5.751,90.967,90.816,6.0]
[1645198641028,5.501,90.967,90.817,0.25]
[1645198641229,5.501,90.977,90.817,6.25]
[1645198641429,5.501,90.977,90.817,8.8793831]
[1645198641628,16.47725157,90.995,90.831,42.41537255]
[1645198641629,2.6293831,90.993,90.831,42.41537255]
[1645198641828,16.47725157,90.995,90.832,6.25]
[1645198642030,16.47725157,90.995,90.832,27.4553889]
[1645198642329,24.5612,90.999,90.833,2.6293831]
[1645198642528,2.6293831,90.994,90.834,6.25]
[1645198642733,11.499,90.993,90.832,0.25]
[1645198642928,30.17902935,90.993,90.832,0.25]
[1645198643137,33.20079653,90.992,90.832,0.25]
[1645198643331,11.499,90.991,90.832,0.25]
[1645198643531,32.80841245,90.991,90.833,2.6293831]
[1645198643732,32.80841245,90.991,90.834,6.25]
[1645198643733,0.25,90.99,90.834,6.25]
[1645198643930,2.8793831,90.99,90.84,16.5031]
[1645198644131,8.6293831,90.989,90.841,60.71]
[1645198644331,6.25,90.988,90.841,6.0]
[1645198644532,5.499,90.987,90.831,42.41537255]
[1645198644730,6.25,90.986,90.831,42.41537255]
[1645198644931,5.5,90.985,90.831,42.41537255]
[1645198645133,6.25,90.984,90.832,6.0]
[1645198645430,0.25,90.983,90.832,6.0]
[1645198645633,5.5,90.982,90.832,6.0]
[1645198645834,6.25,90.981,90.833,0.25]
[1645198646032,5.5,90.98,90.833,0.25]
[1645198646332,6.25,90.979,90.832,6.0]
[1645198646534,5.5,90.978,90.832,6.0]
[1645198646733,16.5115,90.97,90.831,42.41537255]
[1645198646952,6.0,90.969,90.832,6.0]
[1645198647133,8.6293831,90.969,90.832,6.0]
[1645198647333,17.38307852,90.968,90.833,0.25]
[1645198647534,6.0,90.967,90.832,6.25]
[1645198647733,8.6293831,90.967,90.832,6.25]
[1645198647933,2.6293831,90.966,90.832,6.25]
[1645198648137,6.0,90.965,90.832,6.25]
[1645198648336,6.0,90.965,90.833,2.6293831]
[1645198648535,6.0,90.965,90.834,6.25]
[1645198648736,6.0,90.983,90.834,6.25]
[1645198648935,5.5,90.982,90.834,6.25]
[1645198649137,2.6293831,90.964,90.832,6.0]
[1645198649335,11.5,90.963,90.835,6.0]
[1645198649536,11.5,90.963,90.832,6.0]
[1645198649736,2.6293831,90.962,90.832,6.0]
[1645198649937,6.0,90.961,90.832,6.0]
[1645198650137,6.0,90.963,90.832,6.0]
[1645198650539,2.6293831,90.963,90.833,0.25]
[1645198650741,6.0,90.962,90.833,0.25]
[1645198651339,6.0,90.978,90.833,0.25]
[1645198651540,6.0,90.978,90.81,5.59281753]
[1645198651742,6.0,90.978,90.81,0.59281753]
[1645198651743,13.7733394,90.961,90.81,0.59281753]
[1645198651942,5.53,90.95,90.81,0.59281753]
[1645198652141,11.751,90.949,90.81,0.59281753]
[1645198652343,58.32996807,90.949,90.81,0.59281753]
[1645198652541,58.32996807,90.949,90.81,40.40972639]
[1645198652740,55.0727,90.94,90.81,40.40972639]
[1645198652941,64.52,90.934,90.81,0.59281753]
[1645198653140,5.53,90.91,90.81,0.59281753]
[1645198653344,11.752,90.909,90.81,0.59281753]
[1645198653642,0.53,90.9,90.81,0.59281753]
[1645198653843,5.503,90.899,90.81,0.59281753]
[1645198654041,6.25,90.898,90.811,44.40539258]
[1645198654243,6.25,90.898,90.81,0.59281753]
[1645198654459,5.503,90.897,90.81,0.59281753]
[1645198654661,6.0,90.896,90.81,0.59281753]
[1645198654858,5.753,90.895,90.81,0.59281753]
[1645198655063,16.5269,90.88,90.81,0.59281753]
[1645198655259,6.0,90.879,90.811,41.36779792]
[1645198655459,0.25,90.878,90.811,41.36779792]
[1645198655659,2.6293831,90.911,90.811,41.36779792]
[1645198655861,5.502,90.933,90.811,41.36779792]
[1645198656059,2.6293831,90.93,90.811,41.36779792]
[1645198656262,64.52,90.929,90.811,41.36779792]
[1645198656462,19.1489831,90.93,90.81,0.59281753]
[1645198656463,64.52,90.927,90.81,0.59281753]
[1645198656659,64.52,90.925,90.81,0.59281753]
[1645198657159,23.91484353,90.924,90.81,0.59281753]
[1645198657359,23.91484353,90.924,90.811,52.25384585]
[1645198657560,36.48245065,90.923,90.811,52.25384585]
[1645198657960,2.6293831,90.922,90.812,0.25]
[1645198658761,2.6293831,90.922,90.811,52.25384585]
[1645198658762,64.52,90.92,90.811,52.25384585]
[1645198658959,16.5233,90.9,90.811,52.25384585]
[1645198659260,6.0,90.899,90.811,52.25384585]
[1645198659460,36.48245065,90.919,90.811,52.25384585]
[1645198659461,0.25,90.898,90.811,52.25384585]
[1645198659659,0.25,90.917,90.811,52.25384585]
[1645198659860,0.25,90.917,90.812,6.0]
[1645198660062,8.6293831,90.918,90.812,6.0]
[1645198660260,2.6293831,90.917,90.813,0.25]
[1645198660462,6.0,90.916,90.813,0.25]
[1645198661062,6.0,90.918,90.813,0.25]
[1645198661263,6.0,90.926,90.813,0.25]
[1645198661663,6.0,90.926,90.812,0.25]
[1645198661869,0.25,90.925,90.812,0.25]
[1645198662064,2.6293831,90.926,90.812,0.25]
[1645198662266,508.64181801,90.935,90.812,0.25]
[1645198662267,508.64181801,90.935,90.84,5.0]
[1645198662468,1.52202489,90.962,90.841,61.31931442]
[1645198662666,16.5097,90.98,90.85,5.0]
[1645198662667,1.52202489,90.97,90.85,5.0]
[1645198662868,1.52202489,90.986,90.851,6.25]
[1645198663066,1.52202489,90.983,90.851,6.25]
[1645198663267,5.67925331,90.981,90.87,5.0]
[1645198663471,5.67925331,90.981,90.871,48.90333579]
[1645198663668,1.52202489,90.977,90.871,48.90333579]
[1645198663868,1.52202489,90.98,90.871,51.53271889]
[1645198664071,1.52202489,90.978,90.871,54.40133579]
[1645198664270,1.52202489,90.973,90.871,54.40133579]
[1645198664471,1.52202489,90.976,90.871,48.90333579]
[1645198664671,2.6293831,91.004,90.871,48.90333579]
[1645198664672,1.52202489,90.974,90.871,48.90333579]
[1645198664870,1.52202489,90.974,90.88,16.5022]
[1645198665072,1.52202489,90.971,90.881,0.25]
[1645198665273,16.5037,91.0,90.881,0.25]
[1645198665274,1.52202489,90.974,90.881,0.25]
[1645198665470,1.52202489,90.97,90.881,0.25]
[1645198665671,1.77202489,90.969,90.88,16.5022]
[1645198665871,1.52202489,90.972,90.881,0.25]
[1645198666270,1.52202489,90.976,90.881,0.25]
[1645198666470,1.52202489,90.981,90.882,5.498]
[1645198666670,1.52202489,90.984,90.883,6.25]
[1645198666870,1.52202489,90.984,90.884,5.748]
[1645198667071,1.52202489,90.985,90.885,45.39909546]
[1645198667275,1.52202489,90.985,90.91,16.4974]
[1645198667474,6.23937791,91.014,90.911,50.23457814]
[1645198667475,1.52202489,90.992,90.911,50.23457814]
[1645198667679,1.52202489,90.994,90.911,50.23457814]
[1645198667873,1.52202489,90.995,90.911,50.23457814]
[1645198668073,1.52202489,90.996,90.911,50.23457814]
[1645198668275,0.25,90.995,90.912,6.0]
[1645198668575,1.52202489,91.001,90.913,0.25]
[1645198668774,0.25,91.0,90.913,0.25]
[1645198668973,1.52202489,91.001,90.92,16.4957]
[1645198669176,1.52202489,91.006,90.921,6.25]
[1645198669380,0.25,91.005,90.921,6.25]
[1645198669576,1.52202489,91.006,90.921,6.25]
[1645198669777,1.52202489,91.007,90.922,6.0]
[1645198669976,1.52202489,91.016,90.923,5.746]
[1645198670275,1.52202489,91.018,90.931,54.86414569]
[1645198670474,26.13547126,91.043,90.931,54.86414569]
[1645198670475,1.52202489,91.023,90.932,6.25]
[1645198670875,1.77202489,91.022,90.932,6.25]
[1645198671077,1.52202489,91.023,90.932,6.25]
[1645198671274,1.52202489,91.033,90.933,5.495]
[1645198671480,1.52202489,91.034,90.94,16.4928]
[1645198671676,0.25,91.033,90.941,6.25]
[1645198672277,0.25,91.033,90.942,6.0]
[1645198672575,0.25,91.033,90.943,0.25]
[1645198672776,0.25,91.035,90.941,0.25]
[1645198672975,1.52202489,91.038,90.935,6.0]
[1645198673175,1.52202489,91.023,90.935,6.0]
[1645198673375,1.52202489,91.023,90.931,54.86414569]
[1645198673376,1.52202489,91.027,90.936,0.25]
[1645198673577,0.25,91.041,90.936,0.25]
[1645198673578,1.52202489,91.037,90.936,0.25]
[1645198673776,1.52202489,91.033,90.936,0.25]
[1645198673975,0.25,91.032,90.94,16.4918]
[1645198674175,0.25,91.041,90.934,6.0]
[1645198674176,1.52202489,91.037,90.941,6.25]
[1645198674376,0.25,91.036,90.941,0.25]
[1645198674575,1.52202489,91.039,90.941,0.25]
[1645198674777,1.52202489,91.048,90.941,0.25]
[1645198674978,1.52202489,91.044,90.941,0.25]
[1645198675176,1.52202489,91.038,90.932,6.0]
[1645198675377,1.52202489,91.036,90.94,29.3119]
[1645198675578,1.52202489,91.033,90.932,6.0]
[1645198675781,6.0,91.032,90.932,6.0]
[1645198676080,0.25,91.032,90.932,6.0]
[1645198676378,0.25,91.033,90.932,6.0]
[1645198676577,6.25,91.037,90.932,6.0]
[1645198676777,6.0,91.036,90.933,0.25]
[1645198676979,0.25,91.035,90.933,0.25]
[1645198677379,6.0,91.037,90.94,16.4924]
[1645198677581,1.52202489,91.039,90.941,0.25]
[1645198677779,5.495,91.079,90.941,0.25]
[1645198677780,1.52202489,91.047,90.941,0.25]
[1645198677982,6.0,91.046,90.941,0.25]
[1645198678181,6.0,91.047,90.941,6.25]
[1645198678382,1.52202489,91.042,90.941,6.25]
[1645198678587,6.0,91.041,90.941,6.25]
[1645198678780,1.52202489,91.051,90.941,6.25]
[1645198678981,1.52202489,91.054,90.941,6.25]
[1645198679180,1.52202489,91.056,90.941,6.25]
[1645198679388,1.52202489,91.059,90.941,6.25]
[1645198679580,6.0,91.058,90.941,6.25]
[1645198679782,6.0,91.058,90.95,16.4912]
[1645198679980,3.00617126,91.091,90.95,16.4912]
[1645198679981,1.52202489,91.068,90.96,12.82]
[1645198680182,1.52202489,91.073,90.961,6.25]
[1645198680686,1.52202489,91.081,90.962,5.493]
[1645198680882,7.52202489,91.08,90.96,12.82]
[1645198681080,1.52202489,91.074,90.952,30.3773]
[1645198681287,1.52202489,91.061,90.953,6.25]
[1645198681484,1.52202489,91.068,90.953,6.25]
[1645198681683,6.25,91.067,90.953,6.25]
[1645198682181,6.25,91.067,90.953,6.0]
[1645198682385,16.4912,91.06,90.952,24.8853]
[1645198682582,1.52202489,91.055,90.951,54.13025982]
[1645198682783,1.52202489,91.041,90.951,54.13025982]
[1645198682984,6.25,91.04,90.951,54.13025982]
[1645198683386,1.52202489,91.036,90.951,54.13025982]
[1645198683585,16.4987,91.02,90.951,54.13025982]
[1645198683789,6.25,91.019,90.951,54.13025982]
[1645198684995,16.4998,91.01,90.951,54.13025982]
[1645198685193,6.25,91.009,90.951,54.13025982]
[1645198685394,6.25,91.009,90.901,23.6871]
[1645198685594,8.8793831,91.009,90.901,23.6871]
[1645198685793,8.1263831,91.008,90.902,4.30468]
[1645198685993,16.5014,91.0,90.902,4.30468]
[1645198686195,6.25,90.999,90.902,4.30468]
[1645198686397,8.8793831,90.999,90.903,45.96609325]
[1645198686793,6.25,90.999,90.903,45.96609325]
[1645198686997,0.25,90.999,90.903,45.96609325]
[1645198687194,16.5019,91.0,90.903,45.96609325]
[1645198687397,6.25,90.999,90.903,45.96609325]
[1645198688211,1.52202489,91.009,90.904,6.25]
[1645198688414,1.52202489,91.025,90.91,12.82]
[1645198688613,1.52202489,91.025,90.911,11.746]
[1645198688812,1.52202489,91.023,90.911,11.746]
[1645198689015,1.52202489,91.025,90.911,11.746]
[1645198689412,1.52202489,91.027,90.912,110.1]
[1645198689612,1.52202489,91.027,90.923,110.1]
[1645198689813,1.52202489,91.027,90.931,110.1]
[1645198690014,1.52202489,91.028,90.933,110.1]
[1645198690214,1.52202489,91.028,90.935,110.1]
[1645198690413,1.52202489,91.017,90.937,110.1]
[1645198690618,1.52202489,91.024,90.951,110.1]
[1645198690814,3.00617126,91.05,90.95,29.3113]
[1645198690815,1.52202489,91.039,90.953,110.1]
[1645198691015,1.52202489,91.039,90.955,110.1]
[1645198691216,1.52202489,91.048,90.957,110.1]
[1645198691416,1.52202489,91.049,90.971,110.1]
[1645198691620,1.52202489,91.05,90.99,16.4851]
[1645198691816,1.52202489,91.047,90.991,42.02086915]
[1645198692018,1.52202489,91.051,90.991,42.02086915]
[1645198692216,1.52202489,91.054,90.992,6.0]
[1645198692416,1.52202489,91.054,90.993,110.35]
[1645198692619,1.52202489,91.054,91.0,16.4848]
[1645198692818,1.52202489,91.051,91.0,16.4848]
[1645198693016,1.52202489,91.042,91.0,16.4848]
[1645198693418,1.52202489,91.041,91.0,16.4848]
[1645198693616,110.1,91.074,91.0,16.4848]
[1645198693617,1.52202489,91.046,91.0,16.4848]
[1645198693816,1.52202489,91.047,91.0,16.4848]
[1645198694016,1.52202489,91.046,91.0,16.4848]
[1645198694220,1.52202489,91.044,91.0,16.4848]
[1645198694617,1.52202489,91.045,91.0,16.4848]
[1645198694816,1.52202489,91.041,91.0,16.4848]
[1645198695217,1.52202489,91.04,90.991,41.77086915]
[1645198696020,1.52202489,91.038,90.991,41.77086915]
[1645198696320,1.52202489,91.038,90.992,0.25]
[1645198696522,3.00617126,91.064,90.992,0.25]
[1645198696723,0.25,91.063,90.992,0.25]
[1645198696920,6.23478296,91.062,90.992,0.25]
[1645198697120,110.35,91.061,90.991,41.77086915]
[1645198697321,110.1,91.059,90.991,41.77086915]
[1645198697521,0.25,91.058,90.991,41.77086915]
[1645198697722,6.48478296,91.058,90.991,41.77086915]
[1645198697923,0.25,91.058,90.991,41.77086915]
[1645198698122,3.00617126,91.067,91.002,0.89358954]
[1645198698423,3.00617126,91.074,91.011,45.60558093]
[1645198698623,3.00617126,91.081,91.012,0.25]
[1645198699228,3.00617126,91.082,91.012,0.25]
[1645198699426,1.00617126,91.083,91.012,110.35]
[1645198699626,6.23392773,91.093,91.021,110.1]
[1645198699833,6.23392773,91.104,91.022,0.25]
[1645198700027,6.23392773,91.108,91.022,0.25]
[1645198700229,4.59614016,91.121,91.023,110.1]
[1645198700427,6.23392773,91.128,91.027,110.1]
[1645198700632,6.23392773,91.128,91.062,160.92899261]
[1645198700829,6.23392773,91.128,91.063,0.25]
[1645198701032,6.23392773,91.128,91.064,110.1]
[1645198701231,6.23392773,91.134,91.066,110.1]
[1645198701431,4.59614016,91.148,91.065,6.25]
[1645198701432,4.59614016,91.161,91.07,12.82]
[1645198701737,80.43819834,91.208,91.091,110.1]
[1645198701738,6.23392773,91.16,91.091,110.1]
[1645198701932,6.23392773,91.16,91.092,6.25]
[1645198702132,532.45850622,91.191,91.093,1.75311557]
[1645198702133,4.59614016,91.187,91.093,1.75311557]
[1645198702334,6.23392773,91.159,91.094,6.25]
[1645198702533,4.59614016,91.187,91.094,6.25]
[1645198702935,4.59614016,91.187,91.093,1.75311557]
[1645198703142,6.23392773,91.19,91.093,1.75311557]
[1645198703337,6.23392773,91.19,91.094,0.25]
[1645198703737,10.83006789,91.201,91.094,0.25]
[1645198703939,16.4651,91.2,91.094,0.25]
[1645198704140,6.23392773,91.199,91.094,0.25]
[1645198704540,6.23392773,91.199,91.095,5.488]
[1645198704738,6.23392773,91.201,91.096,6.25]
[1645198704941,6.23392773,91.198,91.096,6.25]
[1645198705138,4.59614016,91.22,91.096,6.25]
[1645198705139,16.4635,91.21,91.096,0.25]
[1645198705339,6.23392773,91.209,91.096,0.25]
[1645198705940,6.23392773,91.209,91.094,6.0]
[1645198706140,5.488,91.208,91.093,1.75311557]
[1645198706340,16.4671,91.19,91.093,1.75311557]
[1645198706540,12.23392773,91.189,91.093,1.75311557]
[1645198706843,6.23392773,91.188,91.093,1.75311557]
[1645198707041,6.0,91.187,91.093,1.75311557]
[1645198707241,0.25,91.186,91.094,6.0]
[1645198707440,0.25,91.218,91.094,6.25]
[1645198707641,6.22786188,91.217,91.094,6.25]
[1645198707840,0.25,91.216,91.095,110.1]
[1645198708045,6.22786188,91.215,91.097,110.1]
[1645198708244,6.22786188,91.215,91.099,110.1]
[1645198708442,6.22786188,91.226,91.101,110.1]
[1645198708643,16.4616,91.22,91.102,11.738]
[1645198708845,11.71586188,91.219,91.102,0.25]
[1645198709041,6.22786188,91.218,91.093,1.75311557]
[1645198709243,5.488,91.217,91.093,1.75311557]
[1645198709446,6.47786188,91.216,91.094,6.0]
[1645198709642,16.4649,91.2,91.094,6.0]
[1645198709843,0.25,91.199,91.094,6.0]
[1645198710652,0.25,91.199,91.093,1.75311557]
[1645198710847,0.25,91.225,91.093,1.75311557]
[1645198711046,11.71625113,91.224,91.093,1.75311557]
[1645198711247,6.47825113,91.223,91.093,1.75311557]
[1645198711450,5.488,91.222,91.094,0.25]
[1645198711646,116.57825113,91.221,91.094,0.25]
[1645198711846,110.1,91.189,91.093,1.75311557]
[1645198712050,6.25,91.188,91.093,1.75311557]
[1645198712447,0.25,91.188,91.093,1.75311557]
[1645198713248,110.1,91.217,91.093,1.75311557]
[1645198713446,5.738,91.218,91.093,1.75311557]
[1645198713447,16.4686,91.18,91.093,1.75311557]
[1645198713746,6.25,91.179,91.094,0.25]
[1645198715149,16.4698,91.17,91.093,1.75311557]
[1645198715348,6.25,91.169,91.093,1.75311557]
[1645198715553,110.1,91.168,91.093,1.75311557]
[1645198715755,12.48062517,91.167,91.07,16.4712]
[1645198715950,5.489,91.166,91.07,16.4712]
[1645198716150,6.25,91.165,91.07,16.4712]
[1645198716352,0.25,91.164,91.071,110.1]
[1645198716551,6.25,91.167,91.071,110.1]
[1645198716752,6.0,91.166,91.071,110.1]
[1645198716953,0.25,91.165,91.071,110.1]
[1645198717155,373.23610501,91.198,91.071,110.1]
[1645198717355,6.22836794,91.197,91.079,110.1]
[1645198717554,6.22836794,91.197,91.091,110.1]
[1645198717752,373.23610501,91.198,91.093,110.1]
[1645198717953,373.23610501,91.198,91.095,110.1]
[1645198718153,373.23610501,91.198,91.097,110.1]
[1645198718454,373.23610501,91.198,91.099,110.1]
[1645198718658,4.59614016,91.232,91.101,110.1]
[1645198718857,6.22742474,91.226,91.102,116.35]
[1645198719458,16.4608,91.22,91.102,116.35]
[1645198719659,6.22742474,91.219,91.102,116.35]
[1645198719860,110.1,91.218,91.096,0.87963074]
[1645198720262,110.1,91.216,91.096,0.87963074]
[1645198720461,110.1,91.214,91.096,0.87963074]
[1645198720659,110.1,91.212,91.096,0.87963074]
[1645198720860,110.1,91.21,91.096,0.87963074]
[1645198721062,6.47742474,91.209,91.096,0.87963074]
[1645198721266,6.22742474,91.208,91.096,0.87963074]
[1645198721466,110.35,91.207,91.096,0.87963074]
[1645198721662,6.22742474,91.206,91.096,0.87963074]
[1645198721861,0.25,91.205,91.096,0.87963074]
[1645198722083,110.1,91.203,91.096,0.87963074]
[1645198722291,110.1,91.179,91.096,0.87963074]
[1645198722488,110.1,91.177,91.096,0.87963074]
[1645198722688,5.488,91.199,91.096,0.87963074]
[1645198722689,12.47742474,91.176,91.096,0.87963074]
[1645198722889,6.22742474,91.175,91.096,0.87963074]
[1645198723089,6.25,91.174,91.094,0.93635439]
[1645198723291,11.71542474,91.173,91.094,0.93635439]
[1645198723490,6.25,91.172,91.094,0.87873853]
[1645198723690,115.588,91.171,91.095,3.03219997]
[1645198723892,110.1,91.169,91.094,0.87873853]
[1645198724192,0.88919826,91.088,91.036,24.4518]
[1645198725193,0.88919826,91.088,91.037,0.25]
[1645198725393,0.88919826,91.088,91.04,16.4787]
[1645198726092,0.88919826,91.088,91.034,45.4348383]
[1645198727497,5.49,91.147,91.041,110.1]
[1645198727702,12.23089473,91.146,91.042,0.25]
[1645198727896,6.23089473,91.145,91.042,6.25]
[1645198728195,6.23089473,91.148,91.043,110.1]
[1645198728396,6.23089473,91.148,91.04,12.82]
[1645198728397,6.0,91.147,91.08,16.4718]
[1645198728795,6.48089473,91.146,91.08,16.4718]
[1645198728995,12.23089473,91.145,91.08,16.4718]
[1645198729195,12.23089473,91.144,91.051,110.1]
[1645198729401,6.23089473,91.143,91.052,0.25]
[1645198729695,6.0,91.142,91.052,0.25]
[1645198729897,12.23089473,91.142,91.07,16.4723]
[1645198730198,12.23089473,91.142,91.052,0.25]
[1645198730396,6.23089473,91.141,91.052,0.25]
[1645198730596,6.0,91.14,91.061,110.1]
[1645198730796,6.23089473,91.139,91.062,0.25]
[1645198731197,6.23089473,91.139,91.09,16.4703]
[1645198731398,6.23089473,91.139,91.091,51.55366022]
[1645198731595,12.11334288,91.178,91.09,16.4703]
[1645198731596,6.23089473,91.164,91.09,16.4703]
[1645198731797,6.0,91.163,91.09,16.4703]
[1645198731999,6.23089473,91.164,91.09,16.4703]
[1645198732198,6.23089473,91.163,91.09,16.4703]
[1645198732599,16.47,91.17,91.09,16.4703]
[1645198732801,12.48089473,91.169,91.09,16.4703]
[1645198732999,6.23089473,91.168,91.09,16.4703]
[1645198733218,6.25,91.167,91.09,16.4703]
[1645198733400,6.23089473,91.166,91.09,16.4703]
[1645198733600,6.25,91.165,91.09,16.4703]
[1645198733800,6.23089473,91.164,91.09,16.4703]
[1645198734001,6.25,91.163,91.09,16.4703]
[1645198734403,6.23089473,91.162,91.09,16.4703]
[1645198734605,6.25,91.161,91.09,16.4703]
[1645198734803,6.23089473,91.16,91.09,16.4703]
[1645198735103,6.25,91.159,91.09,16.4703]
[1645198735306,6.23089473,91.158,91.09,16.4703]
[1645198735706,6.23089473,91.169,91.091,110.35]
[1645198735903,6.23089473,91.178,91.091,110.35]
[1645198736105,4.59614016,91.197,91.093,110.1]
[1645198736305,4.59614016,91.197,91.095,110.1]
[1645198736507,4.59614016,91.197,91.097,110.1]
[1645198736708,6.23089473,91.204,91.099,110.1]
[1645198736912,6.23089473,91.196,91.14,54.8548]
[1645198737106,6.23089473,91.203,91.141,116.35]
[1645198737309,4.59614016,91.236,91.141,116.35]
[1645198737810,4.59614016,91.236,91.19,110.1]
[1645198738013,6.23089473,91.251,91.191,51.96047121]
[1645198738210,6.23089473,91.235,91.191,51.96047121]
[1645198738408,6.23089473,91.249,91.191,51.71047121]
[1645198738808,6.0,91.248,91.211,46.16413766]
[1645198739009,216.73581231,91.327,91.214,5.0]
[1645198739220,5.48,91.378,91.26,54.7745]
[1645198739416,7.52633415,91.427,91.28,160.3]
[1645198739609,34.51328222,91.468,91.261,5.724]
[1645198739610,11.42349018,91.448,91.291,110.1]
[1645198739909,201.61071486,91.469,91.35,16.4196]
[1645198740114,50.73880165,91.429,91.31,12.82]
[1645198740314,5.472,91.428,91.26,54.7696]
[1645198740511,77.0189,91.428,91.27,12.82]
[1645198740813,110.1,91.427,91.271,6.25]
[1645198741010,110.1,91.42,91.271,6.25]
[1645198741211,110.1,91.42,91.291,47.21354704]
[1645198741411,110.1,91.42,91.292,6.25]
[1645198742015,110.1,91.418,91.3,16.428]
[1645198742216,110.1,91.414,91.291,47.21354704]
[1645198742416,0.39,91.412,91.291,47.21354704]
[1645198742617,5.473,91.411,91.292,0.25]
[1645198742819,6.0,91.41,91.292,6.25]
[1645198743216,6.0,91.414,91.292,6.25]
[1645198743717,110.1,91.409,91.3,16.4275]
[1645198743917,110.1,91.407,91.292,0.25]
[1645198744116,11.473,91.408,91.292,0.25]
[1645198744117,110.1,91.405,91.292,0.25]
[1645198744316,16.4306,91.41,91.292,0.25]
[1645198744317,110.1,91.403,91.292,0.25]
[1645198744522,48.97324498,91.4,91.291,47.21354704]
[1645198744725,6.25,91.399,91.292,0.25]
[1645198745123,110.1,91.398,91.292,0.25]
[1645198745327,6.25,91.397,91.292,0.25]
[1645198745525,6.0,91.397,91.292,0.25]
[1645198745723,6.0,91.399,91.292,0.25]
[1645198746826,0.25,91.398,91.292,0.25]
[1645198747230,0.25,91.398,91.291,47.21354704]
[1645198747429,110.1,91.397,91.291,47.21354704]
[1645198747627,110.1,91.395,91.291,47.21354704]
[1645198747829,110.1,91.393,91.291,47.21354704]
[1645198748026,110.1,91.391,91.291,47.21354704]
[1645198748249,110.1,91.389,91.262,24.106]
[1645198748443,110.1,91.387,91.263,0.25]
[1645198748637,110.1,91.385,91.263,0.25]
[1645198748838,110.1,91.383,91.263,0.25]
[1645198749044,110.1,91.381,91.25,12.82]
[1645198749241,110.1,91.379,91.251,37.81775627]
[1645198749441,110.1,91.377,91.251,37.81775627]
[1645198749641,110.1,91.369,91.251,37.81775627]
[1645198749843,43.73893982,91.366,91.251,37.81775627]
[1645198750043,121.824,91.365,91.251,37.81775627]
[1645198750241,5.39,91.362,91.221,71.2895]
[1645198750442,64.52,91.359,91.21,12.82]
[1645198750639,110.1,91.36,91.21,12.82]
[1645198750640,16.4443,91.35,91.21,12.82]
[1645198750841,116.35,91.349,91.211,110.1]
[1645198751041,116.35,91.349,91.21,12.82]
[1645198751240,116.35,91.349,91.211,42.32932744]
[1645198751241,110.1,91.347,91.211,42.32932744]
[1645198751440,110.1,91.345,91.211,42.32932744]
[1645198751645,110.1,91.343,91.211,42.32932744]
[1645198751841,64.52,91.34,91.211,42.32932744]
[1645198752041,174.62,91.337,91.211,42.32932744]
[1645198752242,110.1,91.333,91.211,42.32932744]
[1645198752442,110.1,91.327,91.19,12.82]
[1645198752644,5.39,91.322,91.19,12.82]
[1645198752843,110.1,91.32,91.19,12.82]
[1645198753054,110.1,91.318,91.201,110.1]
[1645198753244,116.1,91.317,91.201,110.1]